{"text_format":"1","workbook":"xlsx","n_sheets":5,"sheets":["Accueil","Tableau de bord","BDD-Objectifs","BDD","competences STID"],"not_rendered":{"charts":6,"images":8,"macros":1,"external_links":0,"defined_names":0,"comments":0,"pivot_tables":0},"unopened":[],"bounds":{"document_bytes":16777216,"sheet_cells":100000,"rows_first":2000,"rows_last":500,"rows_between":2000,"halvings":0,"cell_chars":16384,"cell_head_chars":4096},"cells_cut":0,"cells_raw":0,"read":"whole","date_system":"1900"}

{"sheet":"Accueil","index":0,"n_rows":32,"n_cols":1,"rows_kept":32,"cut":false,"hidden":false,"merged":[[31,0,35,11],[0,0,0,29],[1,0,1,29],[2,0,2,28]]}
["Bienvenue sur NoteApp"]
["-"]
["Outil personnel de gestion des notes des semestres 1 et 2"]
[]
["Cette application vous permettra de suivre vos notes et votre niveau dans chaque compétence."]
["Guide d'utilisation de la feuille \"Tableau de bord\":"]
[]
["Grâce au bouton \"ajouter une note\", vous pouvez ajouter vos notes selon le semestre, le bloc de compétence et la ressource."]
["Vous ne devez faire aucun calculs au préalable! entrez vos notes avec le maximum que vous aurez pu avoir et NoteApp se chargera de la mettre sur 20."]
["Toutes les moyennes présentes dans l'application sont sur 20.  "]
["Vous avez la possibilité de renseigner plusieurs notes à la fois."]
["Ces notes seront automatiquement ajoutées à la feuille \"BDD\", où vous pourrez retrouver toutes les notes saisies sur NoteApp."]
[]
[]
["Grâce au bouton \"Ajouter un objectif\", vous avez la possibilité de saisir les moyennes que vous pensiez avoir pour chaque ressource. "]
["Cela vous permettera de comparer vos espérences avec les moyennes que vous avez obtenu. Vous pouvez directement modifier votre objectif dans la colonne adaptée"]
[]
["Grâce au bouton \"Effacer toutes les notes\", vous pouvez rénitialiser le tableau de bord. Toutes les notes entrées seront donc effacées."]
[]
["Dans la colonne \"D\", vous trouverez vos moyennes pour chaque ressource. "]
["Vous trouverez, à droite de cette colonne, la représentation graphique de ces moyennes pour chaque bloc de compétences et à droite du graphique vous trouverez la moyenne du bloc."]
["De la colonne M à la colonne T, vous trouverez un rectangle rouge avec les informations relatives au niveau acquis dans l'année. "]
["Par bloc de compétence, vous pouvez voir votre moyenne annuelle et votre niveau de compétence ( égal à 0 si vous avez une moyenne annuelle en dessous de 10 et 1 si vous avez atteint le niveau 1 de la compétence en ayant plus de 10 de moyenne dans le bloc)."]
["Vous trouverez aussi le verdict quant à votre passage en deuxième année."]
[]
["Guide d'utilisation de la feuille \"BDD\":"]
["Sur cette feuille, vous trouverez une vue d'ensemble de toutes vos notes, rangées par semestre, bloc de compétence et par ressource. "]
["La colonne H vous indique la dernière note que vous avez insérée pour chaque ressource. Cette même note est automatiquement ajoutée à la partie jaune du tableau, qui montre toutes les notes saisies pour cette ressource."]
[]
["FAQ:"]
["Comment modifier une note?"]
["Pour modifier une note, vous devez séleccionner, dans la feuille \"Tableau de bord\", la moyenne dans laquelle vous souhaitez modifier la ou les notes. Vous serez directement redirigés sur la feuille BDD où vous aurez un focus sur toutes les notes de la ressource. Modifiez les notes que vous souhaitez et cliquez sur le bouton \"Confirmer\" pour que noteApp modifie les moyennes du tableau de bord. (vous devez ajouter une note dans une ressource avant de pouvoir modifier les notes de cette ressource)"]

{"sheet":"Tableau de bord","index":1,"n_rows":57,"n_cols":19,"rows_kept":57,"cut":false,"hidden":false,"merged":[[49,8,56,8],[5,8,10,8],[12,8,16,8],[18,8,24,8],[27,0,27,1],[28,8,36,8],[38,8,47,8],[49,0,56,0],[5,0,10,0],[38,0,47,0],[41,13,42,16],[43,13,44,16],[22,13,27,15],[12,13,17,15],[31,16,37,17],[31,13,37,15],[12,16,17,17],[22,16,27,17],[0,0,3,1],[11,16,11,17],[12,18,17,18],[22,18,27,18],[31,18,37,18],[4,0,4,1],[12,0,16,0],[18,0,24,0],[28,0,36,0]]}
["Tableau de bord"]
[]
[]
[]
["Semestre 1",null,"Coefficient","Moyenne par ressource",null,null,null,"Comparaison entre l'objectif et les moyennes obtenues","Moyenne Semestrielle par compétence","Objectif"]
["Compétence 1 :\nTraiter des données à des fins décisionnelles","Tableur et Reporting",15,{"$f":"IFERROR(AVERAGE(BDD!I8:O8),\"\")","v":""},{"$f":" CELL(\"contenu\",D6)","v":""},null,null,null,{"$f":"IFERROR(SUMPRODUCT(D6:D11,$C$6:$C$11)/SUMIF(D6:D11,\">=0\",$C$6:$C$11),\"Veuillez entrer des notes\")","v":"Veuillez entrer des notes"},16.670000076293945]
[null,"Bases de données relationnelles 1",20,{"$f":"IFERROR(AVERAGE(BDD!I9:O9),\"\")","v":""},{"$f":" CELL(\"contenu\",D7)","v":""}]
[null,"Bases de la programmation 1",20,{"$f":"IFERROR(AVERAGE(BDD!I10:O10),\"\")","v":""},{"$f":"CELL(\"contenu\",D8)","v":""}]
[null,"PPP1",5,{"$f":"IFERROR(AVERAGE(BDD!I11:O11),\"\")","v":""},{"$f":" CELL(\"contenu\",D9)","v":""}]
[null,"SAÉ - Reporting à partir de données stockées dans un SGBD relationnel ",30,{"$f":"IFERROR(AVERAGE(BDD!I11:O11),\"\")","v":""},{"$f":" CELL(\"contenu\",D10)","v":""},null,null,null,null,null,null,null,null,"Niveau annuel par compétence"]
[null,"SAÉ - Écriture et lecture de fichiers de données",10,{"$f":"IFERROR(AVERAGE(BDD!I12:O12),\"\")","v":""},{"$f":" CELL(\"contenu\",D11)","v":""}]
[null,null,null,null,null,null,null,null,null,null,null,null,null,null,null,null,"Moyenne annuelle ",null,"Niveau de compétence "]
["Compétence 2 :\nAnalyser statistiquement les données","Statistique descriptive 1",20,{"$f":"IFERROR(AVERAGE(BDD!I13:O13),\"\")","v":""},{"$f":" CELL(\"contenu\",D13)","v":""},null,null,null,{"$f":"IFERROR(SUMPRODUCT(D13:D17,$C$13:$C$17)/SUMIF(D13:D17,\">=0\",$C$13:$C$17),\"Veuillez entrer des notes\")","v":"Veuillez entrer des notes"},null,null,null,null,"Compétence 1 :\nTraiter des données à des fins décisionnelles",null,null,{"$f":"IFERROR(AVERAGE(I6,I29),0)","v":0},null,{"$f":"IFERROR(IF(ISTEXT(Q13),\"0\",IF(AVERAGE(I6,I29)>=10,\"1\",\"0\")),\"Vous n'avez pas saisi tout les arguments nécessaires\")","v":"Vous n'avez pas saisi tout les arguments nécessaires"}]
[null,"Probabilités 1",15,{"$f":"IFERROR(AVERAGE(BDD!I14:O14),\"\")","v":""},{"$f":" CELL(\"contenu\",D14)","v":""}]
[null,"Mathématiques - analyse",20,{"$f":"IFERROR(AVERAGE(BDD!I15:O15),\"\")","v":""},{"$f":" CELL(\"contenu\",D15)","v":""}]
[null,"PPP1",5,{"$f":"IFERROR(AVERAGE(BDD!I23:O23),\"\")","v":""},{"$f":" CELL(\"contenu\",D16)","v":""}]
[null,"SAÉ - Préparation et synthèse d'un tableau de données en vue d'une analyse exploratoire simple",40,{"$f":"IFERROR(AVERAGE(BDD!I16:O16),\"\")","v":""},{"$f":" CELL(\"contenu\",D17)","v":""}]
[]
["Compétence 3 :\nValoriser une production dans un contexte professionnel","Initiation à l'anglais de spécialité",15,{"$f":"IFERROR(AVERAGE(BDD!I17:O17),\"\")","v":""},{"$f":" CELL(\"contenu\",D19)","v":""},null,null,null,{"$f":"IFERROR(SUMPRODUCT(D19:D25,$C$19:$C$25)/SUMIF(D19:D25,\">=0\",$C$19:$C$25),\"Veuillez entrer des notes\")","v":"Veuillez entrer des notes"}]
[null,"Communication de l'information et recherche documentaire",15,{"$f":"IFERROR(AVERAGE(BDD!I18:O18),\"\")","v":""},{"$f":" CELL(\"contenu\",D20)","v":""}]
[null,"Découverte des données de l’environnement entrepreneurial et économique ",25,{"$f":"IFERROR(AVERAGE(BDD!I19:O19),\"\")","v":""},{"$f":" CELL(\"contenu\",D21)","v":""}]
[null,"PPP1",5,{"$f":"IFERROR(AVERAGE(BDD!I23:O23),\"\")","v":""},{"$f":" CELL(\"contenu\",D22)","v":""}]
[null,"SAÉ - Apprendre en situation la production de données en entreprise",15,{"$f":"IFERROR(AVERAGE(BDD!I20:O20),\"\")","v":""},{"$f":" CELL(\"contenu\",D23)","v":""},null,null,null,null,null,null,null,null,"Compétence 2 :\nAnalyser statistiquement les données",null,null,{"$f":"IFERROR(AVERAGE(I13,I39),0)","v":0},null,{"$f":"IFERROR(IF(ISTEXT(Q23),\"0\",IF(AVERAGE(I13,I39)>=10,\"1\",\"0\")),\"Vous n'avez pas saisi tout les arguments nécessaires\")","v":"Vous n'avez pas saisi tout les arguments nécessaires"}]
[null,"SAÉ - Présentation en anglais d'un territoire économique et culturel",10,{"$f":"IFERROR(AVERAGE(BDD!I21:O21),\"\")","v":""},{"$f":" CELL(\"contenu\",D24)","v":""}]
[null,"SAÉ - Mise en oeuvre d'une enquête",15,{"$f":"IFERROR(AVERAGE(BDD!I22:O22),\"\")","v":""},{"$f":" CELL(\"contenu\",D25)","v":""}]
[]
[]
["Semestre 2"]
["Compétence 1 :\nTraiter des données à des fins décisionnelles","Reporting et datavisualisation",10,{"$f":"IFERROR(AVERAGE(BDD!I24:O24),\"\")","v":""},{"$f":" CELL(\"contenu\",D29)","v":""},null,null,null,{"$f":"IFERROR(SUMPRODUCT(D29:D37,$C$29:$C$37)/SUMIF(D29:D37,\">=0\",$C$29:$C$37),\"Veuillez entrer des notes\")","v":"Veuillez entrer des notes"}]
[null,"Bases de données relationnelles 2",15,{"$f":"IFERROR(AVERAGE(BDD!I25:O25),\"\")","v":""},{"$f":" CELL(\"contenu\",D30)","v":""}]
[null,"Bases de la programmation 2",15,{"$f":"IFERROR(AVERAGE(BDD!I26:O26),\"\")","v":""},{"$f":" CELL(\"contenu\",D31)","v":""}]
[null,"Programmation statistique",15,{"$f":"IFERROR(AVERAGE(BDD!I27:O27),\"\")","v":""},{"$f":" CELL(\"contenu\",D32)","v":""},null,null,null,null,null,null,null,null,"Compétence 3 :\nValoriser une production dans un contexte professionnel",null,null,{"$f":"IFERROR(AVERAGE(I19,I50),0)","v":0},null,{"$f":"IFERROR(IF(ISTEXT(Q32),\"0\",IF(AVERAGE(I19,I50)>=10,\"1\",\"0\")),\"Vous n'avez pas saisi tout les arguments nécessaires\")","v":"Vous n'avez pas saisi tout les arguments nécessaires"}]
[null,"PPP2",5,{"$f":"IFERROR(AVERAGE(BDD!I39:LO39),\"\")","v":""},{"$f":" CELL(\"contenu\",D33)","v":""}]
[null,"SAÉ - Conception et implémentation d'une base de données",10,{"$f":"IFERROR(AVERAGE(BDD!I28:O28),\"\")","v":""},{"$f":" CELL(\"contenu\",D34)","v":""}]
[null,"SAÉ - Datavisualisation",5,{"$f":"IFERROR(AVERAGE(BDD!I40:O40),\"\")","v":""},{"$f":" CELL(\"contenu\",D35)","v":""}]
[null,"SAÉ - Analyse de données, reporting et datavisualisation",20,{"$f":"IFERROR(AVERAGE(BDD!I41:O41),\"\")","v":""},{"$f":" CELL(\"contenu\",D36)","v":""}]
[null,"SAÉ - Portfolio",5,{"$f":"IFERROR(AVERAGE(BDD!I42:O42),\"\")","v":""},{"$f":" CELL(\"contenu\",D37)","v":""}]
[]
["Compétence 2 :\nAnalyser statistiquement les données","Statistique descriptive 2",10,{"$f":"IFERROR(AVERAGE(BDD!I29:O29),\"\")","v":""},{"$f":" CELL(\"contenu\",D39)","v":""},null,null,null,{"$f":"IFERROR(SUMPRODUCT(D39:D48,$C$39:$C$48)/SUMIF(D39:D48,\">=0\",$C$39:$C$48),\"Veuillez entrer des notes\")","v":"Veuillez entrer des notes"}]
[null,"Probabilités 2",15,{"$f":"IFERROR(AVERAGE(BDD!I30:O30),\"\")","v":""},{"$f":" CELL(\"contenu\",D40)","v":""}]
[null,"Bases de l'algèbre",15,{"$f":"IFERROR(AVERAGE(BDD!I31:O31),\"\")","v":""},{"$f":" CELL(\"contenu\",D41)","v":""}]
[null,"Statistique inférentielle",15,{"$f":"IFERROR(AVERAGE(BDD!I32:O32),\"\")","v":""},{"$f":" CELL(\"contenu\",D42)","v":""},null,null,null,null,null,null,null,null,"Passage en seconde année"]
[null,"PPP2",5,{"$f":"IFERROR(AVERAGE(BDD!I39:O39),\"\")","v":""},{"$f":" CELL(\"contenu\",D43)","v":""}]
[null,"SAÉ - Estimation par échantillonnage",10,{"$f":"IFERROR(AVERAGE(BDD!I33:O33),\"\")","v":""},{"$f":" CELL(\"contenu\",D44)","v":""},null,null,null,null,null,null,null,null,{"$f":"IFERROR(IF(OR(AND(Q13>=10,Q23>=10,Q32>8),AND(Q13>=10,Q32>=10,Q23>8),AND(Q23>=10,Q32>=10,Q13>8)),\"Admis en deuxieme année\",\"Refusé en deuxième année\"),\"Vous n'avez pas saisi tout les arguments nécessaires\")","v":"Refusé en deuxième année"}]
[null,"SAÉ - Régression sur des données réelles",10,{"$f":"IFERROR(AVERAGE(BDD!I34:O34),\"\")","v":""},{"$f":" CELL(\"contenu\",D45)","v":""}]
[null,"SAÉ - Datavisualisation",5,{"$f":"IFERROR(AVERAGE(BDD!I40:O40),\"\")","v":""},{"$f":" CELL(\"contenu\",D46)","v":""}]
[null,"SAÉ - Analyse de données, reporting et datavisualisation",10,{"$f":"IFERROR(AVERAGE(BDD!I41:O41),\"\")","v":""},{"$f":" CELL(\"contenu\",D47)","v":""}]
[null,"SAÉ - Portfolio",5,{"$f":"IFERROR(AVERAGE(BDD!I42:O42),\"\")","v":""},{"$f":" CELL(\"contenu\",D48)","v":""}]
[]
["Compétence 3 :\nValoriser une production dans un contexte professionnel","Approfondissement de l'anglais de spécialité",15,{"$f":"IFERROR(AVERAGE(BDD!I35:O35),\"\")","v":""},{"$f":" CELL(\"contenu\",D50)","v":""},null,null,null,{"$f":"IFERROR(SUMPRODUCT(D50:D57,$C$50:$C$57)/SUMIF(D50:D57,\">=0\",$C$50:$C$57),\"Veuillez entrer des notes\")","v":"Veuillez entrer des notes"}]
[null,"Communication et sémiologie",15,{"$f":"IFERROR(AVERAGE(BDD!I36:O36),\"\")","v":""},{"$f":" CELL(\"contenu\",D51)","v":""}]
[null,"Étude des données de l'environnement entrepreneurial et économique",25,{"$f":"IFERROR(AVERAGE(BDD!I37:O37),\"\")","v":""},{"$f":" CELL(\"contenu\",D52)","v":""}]
[null,"PPP2",5,{"$f":"IFERROR(AVERAGE(BDD!I39:O39),\"\")","v":""},{"$f":" CELL(\"contenu\",D53)","v":""}]
[null,"SAÉ - Datavisualisation",5,{"$f":"IFERROR(AVERAGE(BDD!I40:O40),\"\")","v":""},{"$f":" CELL(\"contenu\",D54)","v":""}]
[null,"SAÉ - Construction et présentation d'indicateurs de performance",10,{"$f":"IFERROR(AVERAGE(BDD!I38:O38),\"\")","v":""},{"$f":" CELL(\"contenu\",D55)","v":""}]
[null,"SAÉ - Analyse de données, reporting et datavisualisation",20,{"$f":"IFERROR(AVERAGE(BDD!H41:O41),\"\")","v":""},{"$f":" CELL(\"contenu\",D56)","v":""}]
[null,"SAÉ - Portfolio",5,{"$f":"IFERROR(AVERAGE(BDD!H42:O42),\"\")","v":""},{"$f":" CELL(\"contenu\",D57)","v":""}]

{"sheet":"BDD-Objectifs","index":2,"n_rows":42,"n_cols":8,"rows_kept":42,"cut":false,"hidden":true,"merged":[]}
[]
[]
[]
[]
[]
[]
[null,null,null,null,"Semestre","Compétence","Ressource","Dernière Note"]
[null,null,null,null,1,"Traiter des données à des fins décisionnelles","Tableur et Reporting",{"$f":"IF(AND($A$14=E8,$B$14=F8,$C$14=G8),$D$14,\"\")","v":16.670000000000002}]
[null,null,null,null,1,"Traiter des données à des fins décisionnelles","Bases de données relationnelles 1",{"$f":"IF(AND($A$14=E9,$B$14=F9,$C$14=G9),$D$14,\"\")","v":""}]
[null,null,null,null,1,"Traiter des données à des fins décisionnelles","Bases de la programmation 1",""]
[null,null,null,null,1,"Traiter des données à des fins décisionnelles","SAÉ - Reporting à partir de données stockées dans un SGBD relationnel ",""]
[null,null,null,null,1,"Traiter des données à des fins décisionnelles","SAÉ - Écriture et lecture de fichiers de données",""]
[null,null,null,null,1,"Analyser statistiquement les données","Statistique descriptive 1",""]
[1,"Traiter des données à des fins décisionnelles","Tableur et Reporting",16.670000000000002,1,"Analyser statistiquement les données","Probabilités 1",""]
[null,null,null,null,1,"Analyser statistiquement les données","Mathématiques - analyse",""]
[null,null,null,null,1,"Analyser statistiquement les données","SAÉ - Préparation et synthèse d'un tableau de données en vue d'une analyse exploratoire simple",""]
[null,null,null,null,1,"Valoriser une production dans un contexte professionnel","Initiation à l'anglais de spécialité",""]
[null,null,null,null,1,"Valoriser une production dans un contexte professionnel","Communication de l'information et recherche documentaire",""]
[null,null,null,null,1,"Valoriser une production dans un contexte professionnel","Découverte des données de l’environnement entrepreneurial et économique ",""]
[null,null,null,null,1,"Valoriser une production dans un contexte professionnel","SAÉ - Apprendre en situation la production de données en entreprise",""]
[null,null,null,null,1,"Valoriser une production dans un contexte professionnel","SAÉ - Présentation en anglais d'un territoire économique et culturel",{"$f":"IF(AND($A$14=E21,$B$14=F21,$C$14=G21),$D$14,\"\")","v":""}]
[null,null,null,null,1,"Valoriser une production dans un contexte professionnel","SAÉ - Mise en oeuvre d'une enquête",""]
[null,null,null,null,1,"Multi-Compétence","PPP1",""]
[null,null,null,null,2,"Traiter des données à des fins décisionnelles","Reporting et datavisualisation",""]
[null,null,null,null,2,"Traiter des données à des fins décisionnelles","Bases de données relationnelles 2",""]
[null,null,null,null,2,"Traiter des données à des fins décisionnelles","Bases de la programmation 2",""]
[null,null,null,null,2,"Traiter des données à des fins décisionnelles","Programmation statistique",""]
[null,null,null,null,2,"Traiter des données à des fins décisionnelles","SAÉ - Conception et implémentation d'une base de données",""]
[null,null,null,null,2,"Analyser statistiquement les données","Statistique descriptive 2",""]
[null,null,null,null,2,"Analyser statistiquement les données","Probabilités 2",""]
[null,null,null,null,2,"Analyser statistiquement les données","Bases de l'algèbre",""]
[null,null,null,null,2,"Analyser statistiquement les données","Statistique inférentielle",""]
[null,null,null,null,2,"Analyser statistiquement les données","SAÉ - Estimation par échantillonnage",""]
[null,null,null,null,2,"Analyser statistiquement les données","SAÉ - Régression sur des données réelles",""]
[null,null,null,null,2,"Valoriser une production dans un contexte professionnel","Approfondissement de l'anglais de spécialité",""]
[null,null,null,null,2,"Valoriser une production dans un contexte professionnel","Communication et sémiologie",""]
[null,null,null,null,2,"Valoriser une production dans un contexte professionnel","Étude des données de l'environnement entrepreneurial et économique",""]
[null,null,null,null,2,"Valoriser une production dans un contexte professionnel","SAÉ - Construction et présentation d'indicateurs de performance",""]
[null,null,null,null,2,"Multi-Compétence","PPP2",""]
[null,null,null,null,2,"Multi-Compétence","SAÉ - Datavisualisation",""]
[null,null,null,null,2,"Multi-Compétence","SAÉ - Analyse de données, reporting et datavisualisation",""]
[null,null,null,null,2,"Multi-Compétence","SAÉ - Portfolio",""]

{"sheet":"BDD","index":3,"n_rows":42,"n_cols":9,"rows_kept":42,"cut":false,"hidden":false,"merged":[[3,4,3,7],[6,0,6,3],[1,3,1,6],[6,8,6,14]]}
[null,null,null,null,null,null,null,null,"Modifier les notes que vous souhaitez :"]
[]
[]
[null,null,null,null,"RECAPITULATIF DES NOTES"]
[]
[]
["Dernière note saisie",null,null,null,"Semestre","Compétence","Ressource","Dernière note saisie","Notes"]
["Semestre","Compétence","Nom de la Ressource","Note",1,"Traiter des données à des fins décisionnelles","Tableur et Reporting",{"$f":"IF(AND($A$9=E8,$B$9=F8,$C$9=G8),$D$9,\"\")","v":0}]
[1,"Traiter des données à des fins décisionnelles","Tableur et Reporting",null,1,"Traiter des données à des fins décisionnelles","Bases de données relationnelles 1",""]
[null,null,null,null,1,"Traiter des données à des fins décisionnelles","Bases de la programmation 1",""]
[null,null,null,null,1,"Traiter des données à des fins décisionnelles","SAÉ - Reporting à partir de données stockées dans un SGBD relationnel ",{"$f":"IF(AND($A$9=E11,$B$9=F11,$C$9=G11),$D$9,\"\")","v":""}]
[null,null,null,null,1,"Traiter des données à des fins décisionnelles","SAÉ - Écriture et lecture de fichiers de données",""]
[null,null,null,null,1,"Analyser statistiquement les données","Statistique descriptive 1",""]
[null,null,null,null,1,"Analyser statistiquement les données","Probabilités 1",""]
[null,null,null,null,1,"Analyser statistiquement les données","Mathématiques - analyse",""]
[null,null,null,null,1,"Analyser statistiquement les données","SAÉ - Préparation et synthèse d'un tableau de données en vue d'une analyse exploratoire simple",""]
[null,null,null,null,1,"Valoriser une production dans un contexte professionnel","Initiation à l'anglais de spécialité",""]
[null,null,null,null,1,"Valoriser une production dans un contexte professionnel","Communication de l'information et recherche documentaire",""]
[null,null,null,null,1,"Valoriser une production dans un contexte professionnel","Découverte des données de l’environnement entrepreneurial et économique ",""]
[null,null,null,null,1,"Valoriser une production dans un contexte professionnel","SAÉ - Apprendre en situation la production de données en entreprise",""]
[null,null,null,null,1,"Valoriser une production dans un contexte professionnel","SAÉ - Présentation en anglais d'un territoire économique et culturel",""]
[null,null,null,null,1,"Valoriser une production dans un contexte professionnel","SAÉ - Mise en oeuvre d'une enquête",""]
[null,null,null,null,1,"Multi-Compétence","PPP1",""]
[null,null,null,null,2,"Traiter des données à des fins décisionnelles","Reporting et datavisualisation",""]
[null,null,null,null,2,"Traiter des données à des fins décisionnelles","Bases de données relationnelles 2",""]
[null,null,null,null,2,"Traiter des données à des fins décisionnelles","Bases de la programmation 2",""]
[null,null,null,null,2,"Traiter des données à des fins décisionnelles","Programmation statistique",""]
[null,null,null,null,2,"Traiter des données à des fins décisionnelles","SAÉ - Conception et implémentation d'une base de données",""]
[null,null,null,null,2,"Analyser statistiquement les données","Statistique descriptive 2",{"$f":"IF(AND($A$9=E29,$B$9=F29,$C$9=G29),$D$9,\"\")","v":""}]
[null,null,null,null,2,"Analyser statistiquement les données","Probabilités 2",""]
[null,null,null,null,2,"Analyser statistiquement les données","Bases de l'algèbre",{"$f":"IF(AND($A$9=E31,$B$9=F31,$C$9=G31),$D$9,\"\")","v":""}]
[null,null,null,null,2,"Analyser statistiquement les données","Statistique inférentielle",{"$f":"IF(AND($A$9=E32,$B$9=F32,$C$9=G32),$D$9,\"\")","v":""}]
[null,null,null,null,2,"Analyser statistiquement les données","SAÉ - Estimation par échantillonnage",""]
[null,null,null,null,2,"Analyser statistiquement les données","SAÉ - Régression sur des données réelles",""]
[null,null,null,null,2,"Valoriser une production dans un contexte professionnel","Approfondissement de l'anglais de spécialité",""]
[null,null,null,null,2,"Valoriser une production dans un contexte professionnel","Communication et sémiologie",""]
[null,null,null,null,2,"Valoriser une production dans un contexte professionnel","Étude des données de l'environnement entrepreneurial et économique",""]
[null,null,null,null,2,"Valoriser une production dans un contexte professionnel","SAÉ - Construction et présentation d'indicateurs de performance",""]
[null,null,null,null,2,"Multi-Compétence","PPP2",""]
[null,null,null,null,2,"Multi-Compétence","SAÉ - Datavisualisation",""]
[null,null,null,null,2,"Multi-Compétence","SAÉ - Analyse de données, reporting et datavisualisation",""]
[null,null,null,null,2,"Multi-Compétence","SAÉ - Portfolio",""]

{"sheet":"competences STID","index":4,"n_rows":18,"n_cols":2,"rows_kept":18,"cut":false,"hidden":true,"merged":[]}
["Semestre","Compétence"]
[1,"Traiter des données à des fins décisionnelles"]
[2,"Analyser statistiquement les données"]
[null,"Valoriser une production dans un contexte professionnel"]
[null,"Multi-Compétence"]
[]
[]
[]
[]
[]
[]
[]
[]
[]
[]
[]
[]
[null," "]